bitfinex/quotes_ETHUSD_20250328
["timestamp","ask_amount","ask_price","bid_price","bid_amount"]
[1743203990986,5.25819,1901.8,1901.6,4.939]
[1743203991198,5.25819,1901.8,1901.7,0.10396542]
[1743203991487,5.25819,1901.8,1901.6,4.939]
[1743203991908,5.25819,1901.8,1901.7,0.10396542]
[1743203992119,5.25819,1901.8,1901.6,4.939]
[1743203992421,5.25819,1901.8,1901.7,0.10396542]
[1743203992820,5.25819,1901.8,1901.6,4.939]
[1743203993116,7.50482535,1901.9,1901.7,0.10396542]
[1743203993419,7.50482535,1901.9,1901.6,4.939]
[1743203993636,7.50482535,1901.9,1901.8,0.10395543]
[1743203993787,7.50482535,1901.9,1901.7,0.10396542]
[1743203993987,7.50482535,1901.9,1901.6,4.939]
[1743203994196,7.50540535,1901.7,1901.5,4.94]
[1743203994405,7.50502535,1901.8,1901.5,4.94]
[1743203995013,12.76340535,1901.8,1901.5,4.94]
[1743203996635,12.76340535,1901.8,1901.4,5.25918]
[1743203996828,12.76340535,1901.8,1901.5,4.94]
[1743203998029,7.50502535,1901.8,1901.5,4.94]
[1743203998201,12.76338535,1901.8,1901.5,4.94]
[1743203998716,7.50502535,1901.8,1901.5,4.94]
[1743204000333,5.25817,1901.8,1901.5,4.94]
[1743204000525,12.76289535,1901.9,1901.6,0.7631]
[1743204000708,7.50478535,1901.9,1901.6,0.7631]
[1743204000911,5.25818,1901.8,1901.6,0.7631]
[1743204001106,7.50478535,1901.9,1901.6,0.7631]
[1743204001731,5.65230823,1902.0,1901.7,5.25818]
[1743204002238,13.15697358,1902.0,1901.6,6.07431596]
[1743204002405,7.89916358,1902.0,1901.6,7.81490223]
[1743204002601,7.89916358,1902.0,1901.6,7.76231627]
[1743204002827,7.89916358,1902.0,1901.6,13.02088627]
[1743204003027,7.89916358,1902.0,1901.7,0.10415842]
[1743204003426,7.89916358,1902.0,1901.6,7.76225627]
[1743204003638,7.89916358,1902.0,1901.8,0.10414844]
[1743204003838,7.89916358,1902.0,1901.7,0.10415842]
[1743204004132,5.65230823,1902.0,1901.8,0.10414844]
[1743204004333,5.65225823,1902.0,1901.8,0.10414844]
[1743204004538,5.25764,1902.0,1901.6,6.02174]
[1743204004733,13.52118535,1901.9,1901.7,0.10415842]
[1743204004907,13.52118535,1901.9,1901.5,10.19889]
[1743204005108,8.26314535,1901.9,1901.5,11.821014]
[1743204005438,13.52125535,1901.9,1901.6,0.10416841]
[1743204005637,8.26314535,1901.9,1901.6,0.10416841]
[1743204011354,2.24685535,1901.8,1901.6,0.10416841]
[1743204013651,7.50530535,1901.7,1901.6,0.10416841]
[1743204013863,9.53996589,1901.7,1901.6,0.10416841]
[1743204014064,5.25914,1901.5,1901.3,4.939]
[1743204014283,12.76519535,1901.5,1901.3,4.939]
[1743204014652,7.50599535,1901.5,1901.3,4.939]
[1743204015874,8.32643535,1901.4,1901.2,32.77]
[1743204016172,3.06705535,1901.4,1901.2,32.77]
[1743204016469,2.24685535,1901.5,1901.2,32.77]
[1743204016676,2.24685535,1901.5,1901.2,41.832764]
[1743204017380,2.64043489,1901.5,1901.2,41.832764]
[1743204018488,0.39357954,1901.5,1901.2,41.832634]
[1743204018783,2.24685535,1901.5,1901.2,41.832634]
[1743204019156,8.32580535,1901.6,1901.2,41.832634]
[1743204019548,7.50587535,1901.5,1901.2,36.572994]
[1743204021388,7.89795595,1901.5,1901.2,41.832824]
[1743204021886,7.89795595,1901.5,1901.2,14.001824]
[1743204022086,7.89795595,1901.5,1901.2,10.19883]
[1743204022910,2.24685535,1901.4,1901.1,5.26002]
[1743204023075,3.06705535,1901.4,1901.2,4.939]
[1743204023274,8.32637535,1901.4,1901.2,4.939]
[1743204024121,2.24685535,1901.3,1901.0,0.8174]
[1743204024322,5.26044,1901.0,1900.8,27.834]
[1743204024627,0.8202,1901.1,1900.8,32.773]
[1743204024798,3.06705535,1901.1,1900.8,32.773]
[1743204025000,8.32721535,1901.1,1900.8,32.773]
[1743204025323,3.06705535,1901.3,1901.0,5.26028]
[1743204025625,7.50613535,1901.4,1901.0,5.26028]
[1743204026423,12.76561535,1901.4,1901.0,5.26028]
[1743204027418,2.24685535,1901.2,1900.9,5.26065]
[1743204027697,0.3920806,1901.5,1900.8,32.773]
[1743204027698,2.24685535,1901.1,1900.8,32.773]
[1743204027935,3.06705535,1901.1,1900.8,32.773]
[1743204028115,8.32732535,1901.1,1900.8,32.773]
[1743204028798,2.24685535,1901.0,1900.8,32.773]
[1743204028999,7.50732535,1901.0,1900.8,32.773]
[1743204029225,8.86610489,1901.0,1900.9,0.09837782]
[1743204029401,8.86610489,1901.0,1900.8,32.773]
[1743204029598,2.24685535,1900.9,1900.8,27.834]
[1743204029833,8.27931535,1900.9,1900.8,27.834]
[1743204031732,3.01865535,1900.9,1900.6,10.20045]
[1743204032030,0.7718,1900.9,1900.6,10.20045]
[1743204032527,5.2616,1900.6,1900.2,5.26245]
[1743204032733,5.2616,1900.6,1900.1,10.96603]
[1743204032734,2.24685535,1900.4,1900.1,10.96603]
[1743204033112,7.50892535,1900.4,1900.2,5.21163124]
[1743204033636,2.24685535,1900.3,1900.2,5.21163124]
[1743204033830,5.26232,1900.3,1900.2,5.21163124]
[1743204034033,7.50917535,1900.3,1900.2,5.21163124]
[1743204034235,5.26232,1900.3,1900.2,5.21163124]
[1743204034437,7.50892535,1900.4,1900.2,5.21163124]
[1743204034733,2.24685535,1900.3,1900.2,5.21163124]
[1743204034954,9.789618,1900.3,1900.2,0.27163124]
[1743204035156,10.339618,1900.3,1900.2,0.27163124]
[1743204035334,10.339618,1900.3,1899.6,5.37594]
[1743204035335,11.29853,1900.0,1899.6,5.376]
[1743204035505,5.26344,1899.9,1899.6,5.05175]
[1743204035847,5.26344,1899.9,1899.7,0.27481393]
[1743204036209,5.26344,1899.9,1899.6,5.05175]
[1743204036409,5.26344,1899.9,1899.7,0.27481393]
[1743204036652,5.26344,1899.9,1899.6,5.05175]
[1743204036825,5.26344,1899.9,1899.8,0.27479463]
[1743204037024,5.26344,1899.9,1899.6,5.05175]
[1743204037335,5.26344,1899.9,1899.7,0.27481393]
[1743204037850,5.26344,1899.9,1899.8,0.27479463]
[1743204038347,5.26344,1899.9,1899.6,5.05175]
[1743204038548,15.45457571,1900.0,1899.8,0.27479463]
[1743204038752,11.73662328,1900.0,1899.7,0.27481393]
[1743204038908,11.73662328,1900.0,1899.9,0.27477534]
[1743204039103,11.73662328,1900.0,1899.8,0.27479463]
[1743204039320,4.527298,1900.0,1899.9,0.27477534]
[1743204039516,0.7718,1900.0,1899.9,0.27477534]
[1743204039728,0.7718,1900.0,1899.7,5.2638]
[1743204040056,0.7718,1900.0,1899.8,0.27479463]
[1743204041360,6.03499,1900.0,1899.8,0.27479463]
[1743204041722,6.05099272,1900.0,1899.6,5.37582]
[1743204041923,11.31430272,1900.0,1899.9,0.28191444]
[1743204042149,11.31430272,1900.0,1899.6,5.37582]
[1743204042458,4.527298,1900.0,1899.7,5.26381]
[1743204042617,4.527298,1900.0,1899.7,5.54576303]
[1743204043319,0.7718,1900.0,1899.8,5.26356]
[1743204043652,0.7718,1900.0,1899.9,0.28210748]
[1743204044054,0.7718,1900.0,1899.7,5.26381]
[1743204044349,0.7718,1900.0,1899.9,0.28210748]
[1743204044552,0.7718,1900.0,1899.8,0.28212677]
[1743204044743,0.7718,1900.0,1899.9,0.28210748]
[1743204045139,0.7718,1900.0,1899.7,5.26381]
[1743204045455,0.7718,1900.0,1899.8,0.28212677]
[1743204047478,6.03501,1900.0,1899.8,0.28212677]
[1743204047848,6.03501,1900.0,1899.6,10.64]
[1743204048048,6.03501,1900.0,1899.9,0.28167316]
[1743204048594,6.03501,1900.0,1899.6,10.63993]
[1743204048889,6.03501,1900.0,1899.7,0.28171175]
[1743204049290,6.03501,1900.0,1899.6,10.63993]
[1743204049449,6.03501,1900.0,1899.8,0.28169245]
[1743204049653,7.20419901,1900.0,1899.7,0.28171175]
[1743204049883,7.20419901,1900.0,1899.9,0.28167316]
[1743204050079,7.20419901,1900.0,1899.6,5.37583]
[1743204050080,5.26343,1899.9,1899.8,0.28169245]
[1743204050295,10.95969701,1900.0,1899.6,5.37593]
[1743204050594,9.790508,1900.0,1899.6,5.37593]
[1743204050891,15.053858,1900.0,1899.6,5.37593]
[1743204051192,9.790508,1900.0,1899.6,5.37593]
[1743204051652,15.053848,1900.0,1899.6,5.37593]
[1743204053789,11.29835,1900.0,1899.6,5.37593]
[1743204053988,5.26344,1899.9,1899.6,5.37593]
[1743204054291,5.26344,1899.9,1899.6,0.11175]
[1743204054999,5.26344,1899.9,1899.6,5.37597]
[1743204055205,9.790508,1900.0,1899.6,5.37597]
[1743204055366,0.9790508,1899.9,1899.6,5.37597]
[1743204055966,9.790508,1900.0,1899.6,5.37597]
[1743204056400,5.26346,1899.9,1899.6,5.37597]
[1743204059526,5.26346,1899.9,1899.6,6.19577]
[1743204059821,15.053888,1900.0,1899.6,6.19577]
[1743204060316,9.790538,1900.0,1899.6,6.19577]
[1743204060691,15.053888,1900.0,1899.6,6.19567]
[1743204060891,9.790538,1900.0,1899.6,6.19567]
[1743204062590,6.03504,1900.0,1899.6,6.19567]
[1743204062791,11.29839,1900.0,1899.6,6.19567]
[1743204062990,7.57982581,1900.0,1899.7,0.25971001]
[1743204063221,5.26353,1899.9,1899.6,6.19567]
[1743204063425,5.26353,1899.9,1899.7,0.25971001]
[1743204063730,5.26353,1899.9,1899.6,0.93155]
[1743204063905,5.26353,1899.9,1899.8,0.25969071]
[1743204064103,5.86309681,1899.9,1899.7,0.25971001]
[1743204064312,5.86309681,1899.9,1899.8,0.25969071]
[1743204064619,5.86309681,1899.9,1899.6,0.93155]
[1743204064802,5.26353,1899.9,1899.7,0.25971001]
[1743204065001,5.26353,1899.9,1899.6,0.93155]
[1743204065188,5.26353,1899.9,1899.7,0.25971001]
[1743204065387,5.26353,1899.9,1899.6,0.93155]
[1743204065730,5.26353,1899.9,1899.7,0.25971001]
[1743204065923,6.540663,1899.8,1899.7,0.25971001]
[1743204066221,5.26398,1899.7,1899.6,0.11175]
[1743204066993,5.81398,1899.7,1899.6,0.11175]
[1743204067292,13.374978,1899.7,1899.6,0.11175]
[1743204068300,0.8055,1899.7,1899.6,0.11175]
[1743204068624,6.06901,1899.9,1899.6,0.11175]
[1743204068822,5.26319,1900.0,1899.7,0.7854]
[1743204069433,0.3939701,1900.1,1899.7,0.7854]
[1743204069635,5.26371,1899.8,1899.6,5.05375]
[1743204070605,5.26346,1899.9,1899.6,5.05375]
[1743204072710,5.26317,1900.0,1899.6,10.3179]
[1743204073044,5.26317,1900.0,1899.7,0.7854]
[1743204073735,5.26296,1900.1,1899.7,6.0493]
[1743204074438,5.26325,1900.0,1899.7,6.0493]
[1743204074839,5.26325,1900.0,1899.7,0.7854]
[1743204078047,5.26325,1900.0,1899.8,0.2472983]
[1743204080414,10.5266,1900.0,1899.8,0.2472983]
[1743204080614,5.26325,1900.0,1899.8,0.2472983]
[1743204081944,5.26343,1899.9,1899.8,0.2472983]
[1743204082741,5.26343,1899.9,1899.6,0.92525]
[1743204082930,5.26343,1899.9,1899.8,0.24715371]
[1743204083130,5.26343,1899.9,1899.7,0.24717301]
[1743204083344,5.26343,1899.9,1899.8,0.24715371]
[1743204083717,5.26343,1899.9,1899.6,0.92525]
[1743204083916,5.26343,1899.9,1899.8,0.24715371]
[1743204084118,6.23832173,1899.9,1899.7,0.24717301]
[1743204084360,6.23832173,1899.9,1899.8,0.24715371]
[1743204085037,11.50194173,1899.9,1899.6,0.92525]
[1743204085235,6.23832173,1899.9,1899.7,0.24717301]
[1743204085436,6.23832173,1899.9,1899.6,0.92525]
[1743204085636,6.23832173,1899.9,1899.7,0.24717301]
[1743204085947,6.23832173,1899.9,1899.6,0.92525]
[1743204086136,5.26343,1899.9,1899.8,0.24715371]
[1743204086658,5.26343,1899.9,1899.6,0.92525]
[1743204086859,5.26343,1899.9,1899.7,0.24717301]
[1743204087060,5.26343,1899.9,1899.6,0.92525]
[1743204087268,5.26343,1899.9,1899.7,0.24717301]
[1743204087560,6.54147215,1899.9,1899.6,0.92525]
[1743204087761,6.54147215,1899.9,1899.8,0.24715371]
[1743204087962,6.54147215,1899.9,1899.7,0.24717301]
[1743204088269,6.54147215,1899.9,1899.8,0.24715371]
[1743204088464,6.54147215,1899.9,1899.6,0.92525]
[1743204088664,6.54147215,1899.9,1899.7,0.24717301]
[1743204088863,6.54147215,1899.9,1899.6,0.92525]
[1743204089040,6.54147215,1899.9,1899.7,0.24717301]
[1743204089240,6.54147215,1899.9,1899.6,0.92525]
[1743204089454,6.54147215,1899.9,1899.7,0.24717301]
[1743204089653,5.26398,1899.7,1899.6,0.92525]
[1743204089838,8.27998152,1899.7,1899.6,0.34908368]
[1743204092834,9.78428359,1899.7,1899.6,0.34908368]
[1743204093976,13.72979758,1899.7,1899.6,0.34908368]
[1743204097750,13.33428359,1899.7,1899.6,0.34908368]
[1743204097978,15.25950667,1899.7,1899.6,0.34908368]
[1743204102577,15.65360996,1899.7,1899.6,0.34908368]
[1743204102885,15.65360996,1899.7,1899.6,0.11175]
[1743204106083,21.71360996,1899.7,1899.6,1e-05]
[1743204125013,22.46611557,1899.7,1899.6,1e-05]
[1743204128651,20.21081097,1899.7,1899.6,1e-05]
[1743204128952,19.44861097,1899.7,1899.6,1e-05]
[1743204130218,19.05450768,1899.7,1899.6,1e-05]
[1743204130552,19.05450768,1899.7,1899.6,0.24387681]
[1743204132053,1.92522308,1899.7,1899.6,0.24387681]
[1743204132214,5.26325,1900.0,1899.7,0.8067]
[1743204132420,7.5185546,1900.0,1899.8,0.24291286]
[1743204132737,7.5185546,1900.0,1899.9,0.8067]
[1743204132926,9.54816146,1900.0,1899.9,1.04959357]
[1743204133141,9.54816146,1900.0,1899.9,0.8067]
[1743204133343,9.54816146,1900.0,1899.9,1.04959357]
[1743204133658,10.5185546,1900.0,1899.9,1.04959357]
[1743204134412,10.5185546,1900.0,1899.9,0.8067]
[1743204134844,10.5185546,1900.0,1899.9,1.04959357]
[1743204135153,8.26325,1900.0,1899.9,1.04959357]
[1743204135847,8.26325,1900.0,1899.9,0.8067]
[1743204136049,10.59749229,1900.0,1899.9,1.04959357]
[1743204139323,10.59749229,1900.0,1899.9,0.8067]
[1743204139524,10.59749229,1900.0,1899.9,1.04959357]
[1743204140464,10.59749229,1900.0,1899.9,0.24289357]
[1743204140627,5.26343,1899.9,1899.8,0.7801]
[1743204140828,5.26343,1899.9,1899.8,1.02301286]
[1743204143346,6.84952223,1899.9,1899.8,1.02301286]
[1743204144463,5.26343,1899.9,1899.8,1.02301286]
[1743204149570,9.56968294,1899.9,1899.8,0.24291286]
[1743204149753,5.81343,1899.9,1899.8,0.24291286]
[1743204150075,5.26398,1899.7,1899.6,1e-05]
[1743204150271,12.02023294,1899.7,1899.6,0.23759155]
[1743204150479,14.15214993,1899.7,1899.6,0.23759155]
[1743204151043,14.70214993,1899.7,1899.6,0.23759155]
[1743204151244,15.48874993,1899.7,1899.6,0.23759155]
[1743204153988,14.70214993,1899.7,1899.6,0.23759155]
[1743204154979,13.20076506,1899.7,1899.6,0.23759155]
[1743204156198,12.79725236,1899.7,1899.6,0.23759155]
[1743204157274,9.79725236,1899.7,1899.6,0.23759155]
[1743204166707,7.54238429,1899.7,1899.6,0.23759155]
[1743204166884,9.79725236,1899.7,1899.6,0.23759155]
[1743204173585,7.51867807,1899.8,1899.6,0.23759155]
[1743204173784,5.26398,1899.7,1899.6,0.23759155]
[1743204175395,7.51884807,1899.7,1899.6,0.23759155]
[1743204175715,5.26398,1899.7,1899.6,0.23759155]
[1743204176992,5.81398,1899.7,1899.6,0.23759155]
[1743204177195,9.25560707,1899.7,1899.6,0.23759155]
[1743204178321,7.000739,1899.7,1899.6,0.23759155]
[1743204179939,5.26398,1899.7,1899.6,0.23759155]
[1743204180153,5.26398,1899.7,1899.6,0.99799155]
[1743204180441,11.31486807,1899.9,1899.6,0.99799155]
[1743204180442,5.26348,1899.9,1899.6,0.99799155]
[1743204180658,5.26348,1899.9,1899.7,0.7604]
[1743204180797,5.26324,1900.0,1899.7,0.7604]
[1743204181114,5.26324,1900.0,1899.8,0.2391804]
[1743204181512,5.26343,1899.9,1899.8,0.2391804]
[1743204183947,5.26324,1900.0,1899.8,0.2391804]
[1743204184437,10.52659,1900.0,1899.8,0.2391804]
[1743204184661,5.26324,1900.0,1899.8,0.2391804]
[1743204185514,10.52659,1900.0,1899.8,0.2391804]
[1743204186750,5.26324,1900.0,1899.8,0.2391804]
[1743204188153,5.2626,1900.2,1899.9,0.7604]
[1743204188373,5.2626,1900.2,1900.0,0.2385639]
[1743204189352,5.26235,1900.3,1900.1,0.7604]
[1743204189567,5.26235,1900.3,1900.2,0.23698431]
[1743204189854,5.26207,1900.4,1900.2,0.23698431]
[1743204190055,10.52432,1900.4,1900.2,0.23698431]
[1743204190415,10.52432,1900.4,1900.1,0.7604]
[1743204190922,10.52432,1900.4,1900.2,0.23626214]
[1743204191448,5.26232,1900.3,1900.2,0.23626214]
[1743204193556,5.26232,1900.3,1900.1,0.7604]
[1743204193758,5.26232,1900.3,1900.2,0.23626214]
[1743204195563,6.314757,1900.3,1900.2,0.23626214]
[1743204196237,6.314757,1900.3,1900.0,0.8222]
[1743204196238,5.26288,1900.1,1900.0,0.8222]
[1743204196828,5.26269,1900.2,1900.0,0.8222]
[1743204197732,10.52549,1900.2,1900.0,0.8222]
[1743204197932,5.26269,1900.2,1900.0,0.8222]
[1743204198145,5.26269,1900.2,1900.1,0.23401859]
[1743204201442,5.26269,1900.2,1900.1,1.05621859]
[1743204201680,5.26269,1900.2,1900.1,0.8222]
[1743204201835,5.26243,1900.3,1900.1,1.05621859]
[1743204204074,10.52495,1900.3,1900.1,1.05621859]
[1743204204265,5.26243,1900.3,1900.1,1.05621859]
[1743204204883,5.26123,1900.7,1900.4,0.8222]
[1743204205076,5.26161,1900.6,1900.4,0.8222]
[1743204205272,5.26161,1900.6,1900.5,0.23394145]
[1743204205969,9.61711,1900.6,1900.5,1.45e-06]
[1743204206175,5.26339,1900.0,1899.8,0.8222]
[1743204206375,5.26339,1900.0,1899.9,0.21456217]
[1743204206571,0.8055,1900.2,1899.6,5.26426]
[1743204206572,5.26343,1899.9,1899.6,0.82221]
[1743204206877,5.26394,1899.8,1899.7,0.21301228]
[1743204207271,10.52786,1899.8,1899.6,0.82221]
[1743204207581,10.52786,1899.8,1899.7,0.21306041]
[1743204207896,10.52786,1899.8,1899.6,0.82221]
[1743204208098,10.52786,1899.8,1899.7,0.21306041]
[1743204208462,5.26398,1899.7,1899.6,1e-05]
[1743204214014,5.26398,1899.7,1899.6,0.21308971]
[1743204214216,5.26398,1899.7,1899.6,1e-05]
[1743204214513,5.26398,1899.7,1899.6,0.21308971]
[1743204214686,5.26398,1899.7,1899.6,1e-05]
[1743204215408,5.26398,1899.7,1899.6,0.21308971]
[1743204215578,5.26398,1899.7,1899.6,1e-05]
[1743204215782,5.26398,1899.7,1899.6,0.21308971]
[1743204222123,6.31677,1899.7,1899.6,0.21308971]
[1743204229298,5.26398,1899.7,1899.6,0.21308971]
[1743204247667,6.04958,1899.7,1899.6,0.21308971]
[1743204253405,11.8539641,1899.7,1899.6,0.21308971]
[1743204253588,11.8539641,1899.7,1899.6,1e-05]
[1743204253885,11.8539641,1899.7,1899.6,0.19091782]
[1743204254052,13.56575251,1899.7,1899.6,1e-05]
[1743204255895,13.96787052,1899.7,1899.6,1e-05]
[1743204259564,13.56575251,1899.7,1899.6,1e-05]
[1743204259770,12.78015251,1899.7,1899.6,1e-05]
[1743204260292,12.23015251,1899.7,1899.6,0.19207241]
[1743204260602,12.23015251,1899.7,1899.6,1e-05]
[1743204261307,12.23015251,1899.7,1899.6,0.19207241]
[1743204261800,9.97576841,1899.7,1899.6,0.19207241]
[1743204262185,9.97576841,1899.7,1899.6,1e-05]
[1743204263016,12.23015251,1899.7,1899.6,0.19207241]
[1743204265108,13.60685251,1899.7,1899.6,0.19207241]
[1743204265415,13.60685251,1899.7,1899.6,1e-05]
[1743204265618,13.60685251,1899.7,1899.6,0.19207241]
[1743204275226,10.52576841,1899.7,1899.6,0.19207241]
[1743204276502,12.78015251,1899.7,1899.6,0.19207241]
[1743204277129,10.52576841,1899.7,1899.6,0.19207241]
[1743204277348,9.97576841,1899.7,1899.6,0.19207241]
[1743204277629,6.02022,1899.8,1899.6,0.75431]
[1743204277630,5.26392,1899.8,1899.6,0.75431]
[1743204277834,5.26398,1899.7,1899.6,0.75431]
[1743204278932,5.26358,1899.9,1899.6,0.75431]
[1743204279131,10.52718,1899.9,1899.6,0.75431]
[1743204279337,10.52724,1899.9,1899.6,0.75431]
[1743204279520,10.52723,1899.9,1899.6,0.75431]
[1743204279735,5.26358,1899.9,1899.6,0.75431]
[1743204279957,5.26321,1900.0,1899.6,0.75431]
[1743204280116,5.26321,1900.0,1899.7,0.7543]
[1743204280629,10.52657,1900.0,1899.7,0.7543]
[1743204282851,5.26321,1900.0,1899.7,0.7543]
[1743204283657,5.2636,1899.9,1899.7,0.7543]
[1743204283946,5.26398,1899.7,1899.6,1e-05]
[1743204285379,6.03658,1899.7,1899.6,1e-05]
[1743204285562,9.8937331,1899.7,1899.6,1e-05]
[1743204286976,7.639349,1899.7,1899.6,1e-05]
[1743204287267,11.39717324,1899.7,1899.6,1e-05]
[1743204287768,14.39717324,1899.7,1899.6,1e-05]
[1743204288371,14.79078682,1899.7,1899.6,1e-05]
[1743204289270,5.26648,1898.8,1898.7,0.8158]
[1743204289479,5.26648,1898.8,1898.7,0.97921454]
[1743204289679,5.26625,1898.9,1898.7,0.97921454]
[1743204290863,10.53266,1898.9,1898.7,0.97921454]
[1743204291177,5.81648,1898.8,1898.7,0.16341454]
[1743204291475,5.26703,1898.6,1898.5,0.8158]
[1743204291774,5.26703,1898.6,1898.5,0.98016471]
[1743204292173,5.26684,1898.7,1898.5,0.98016471]
[1743204293374,5.26684,1898.7,1898.5,0.16436471]
[1743204293375,5.26703,1898.6,1898.5,0.16436471]
[1743204293575,13.34745424,1898.6,1898.5,0.16436471]
[1743204293871,5.26824,1898.2,1898.0,0.8158]
[1743204294272,5.26788,1898.3,1898.0,0.8158]
[1743204294478,10.5359,1898.3,1898.0,0.8158]
[1743204294682,5.26761,1898.4,1898.0,0.8158]
[1743204294842,5.26792,1898.3,1898.0,0.8158]
[1743204295350,5.26875,1898.0,1897.8,0.8158]
[1743204295965,6.06,1898.5,1897.7,0.1117558]
[1743204295966,1.04381088,1898.4,1897.9,0.8158]
[1743204296165,0.581684,1898.7,1898.1,0.8158]
[1743204296394,5.848574,1898.7,1898.2,5.26794]
[1743204296550,10.53392,1898.7,1898.2,5.26794]
[1743204297560,10.53392,1898.7,1898.1,0.8158]
[1743204297561,5.26769,1898.4,1898.1,0.8158]
[1743204297755,5.26772,1898.4,1898.1,0.8158]
[1743204298088,10.53552,1898.4,1898.1,0.8158]
[1743204298291,5.26772,1898.4,1898.1,0.8158]
[1743204298855,10.53477,1898.5,1898.1,0.8158]
[1743204299084,5.2676,1898.4,1898.1,0.8158]
[1743204300318,10.53486,1898.5,1898.1,0.8158]
[1743204300631,5.26699,1898.7,1898.2,5.26809]
[1743204300926,4.81104424,1898.9,1898.3,0.755]
[1743204300927,6.31953,1898.9,1898.3,0.755]
[1743204301082,5.26665,1898.8,1898.3,6.02267]
[1743204301285,5.26678,1898.7,1898.3,6.02267]
[1743204303013,0.8172,1898.6,1898.4,0.1713913]
[1743204303181,5.26785,1898.4,1898.1,0.755]
[1743204303381,10.53569,1898.4,1898.2,0.17142995]
[1743204303583,5.26787,1898.3,1898.1,0.755]
[1743204303780,5.26787,1898.3,1898.2,0.17142995]
[1743204304192,10.53594,1898.3,1898.1,0.755]
[1743204304513,5.26814,1898.2,1898.1,0.755]
[1743204304812,1.870801,1898.2,1897.7,0.8667558]
[1743204305018,5.26886,1898.0,1897.7,0.8667558]
[1743204305481,5.26843,1898.1,1897.7,0.8667558]
[1743204305808,10.53706,1898.1,1897.7,0.8667558]
[1743204305991,5.26843,1898.1,1897.7,0.8667558]
[1743204306191,5.26843,1898.1,1897.7,6.1362758]
[1743204306390,5.26843,1898.1,1897.7,0.8667558]
[1743204306703,5.26925,1897.8,1897.7,0.1117558]
[1743204307615,5.26908,1897.9,1897.7,0.1117558]
[1743204308703,5.26925,1897.8,1897.7,0.1117558]
[1743204310540,10.39427424,1897.8,1897.7,0.1117558]
[1743204311552,10.39427424,1897.8,1897.7,0.25930137]
[1743204311753,11.96060966,1897.8,1897.7,0.1117558]
[1743204311921,11.96060966,1897.8,1897.7,0.25930137]
[1743204312127,11.96060966,1897.8,1897.7,0.1117558]
[1743204312322,1.04031524,1898.0,1897.7,0.25930137]
[1743204312540,5.26925,1897.8,1897.7,0.1117558]
[1743204312759,5.81925,1897.8,1897.7,0.1117558]
[1743204314237,5.26925,1897.8,1897.7,0.1117558]
[1743204314948,5.81925,1897.8,1897.7,0.1117558]
[1743204315152,7.30386542,1897.8,1897.7,0.1117558]
[1743204317457,8.12836542,1897.8,1897.7,0.1117558]
[1743204318118,8.12836542,1897.8,1897.7,5.8e-06]
[1743204318119,11.12836542,1897.8,1897.7,5.8e-06]
[1743204318321,11.12836542,1897.8,1896.8,0.7943]
[1743204318322,5.27081,1897.3,1896.8,0.7943]
[1743204318522,10.5417,1897.3,1896.8,0.7943]
[1743204318748,5.27105,1897.2,1896.8,0.7943]
[1743204318935,5.27126,1897.1,1896.9,0.15153242]
[1743204319346,5.27185,1896.9,1896.6,0.7943]
[1743204319554,5.27148,1897.0,1896.6,0.7943]
[1743204319731,6.70065242,1897.3,1896.8,6.06626]
[1743204319927,5.2707,1897.3,1896.8,6.06626]
[1743204320123,5.2707,1897.3,1896.9,0.15306589]
[1743204320324,5.27051,1897.4,1896.9,5.42471589]
[1743204320560,5.27051,1897.4,1897.0,6.06565]
[1743204320731,11.32982,1897.6,1897.1,5.27094]
[1743204320929,3.75782424,1897.7,1897.3,0.7943]
[1743204321163,5.27034,1897.5,1897.2,0.15444592]
[1743204321368,5.27034,1897.5,1897.4,0.15431134]
[1743204321570,5.27034,1897.5,1897.1,0.7943]
[1743204321571,5.27034,1897.5,1897.3,0.15313227]
[1743204321862,5.27034,1897.5,1897.4,0.15311293]
[1743204322073,6.324364,1897.5,1897.1,0.7943]
[1743204322230,5.27034,1897.5,1897.2,0.15315162]
[1743204322427,5.27034,1897.5,1897.1,6.06548]
[1743204322764,3.75782424,1897.5,1897.2,0.15315162]
[1743204322938,5.27047,1897.4,1897.2,0.15315162]
[1743204323134,5.27047,1897.4,1896.9,11.33758]
[1743204323370,5.27047,1897.4,1897.3,0.15313227]
[1743204323522,5.27047,1897.4,1896.9,12.972538]
[1743204323847,5.2701,1897.5,1897.0,5.27146]
[1743204324046,5.26986,1897.6,1897.1,6.21855097]
[1743204324634,5.26986,1897.6,1897.2,5.27089]
[1743204324824,5.26986,1897.6,1897.3,0.15313227]
[1743204325026,10.53948,1897.7,1897.4,0.7943]
[1743204325226,5.26992,1897.6,1897.5,0.15309358]
[1743204325757,5.2696,1897.7,1897.5,0.15309358]
[1743204326057,10.53936,1897.7,1897.5,0.15309358]
[1743204326422,5.26981,1897.6,1897.5,0.15309358]
[1743204331477,10.53982,1897.6,1897.2,5.8262]
[1743204331774,10.53982,1897.6,1897.3,0.15394686]
[1743204332949,5.27009,1897.5,1897.3,0.15394686]
[1743204335683,6.02906,1897.7,1897.3,0.15394686]
[1743204335976,11.32862,1898.1,1897.3,1.27904655]
[1743204335977,5.26852,1898.1,1897.3,1.27904655]
[1743204336183,1.45295932,1898.2,1897.9,6.08417]
[1743204336388,1.45295932,1898.2,1898.0,5.26848]
[1743204336549,6.61093227,1898.6,1898.2,0.8152]
[1743204336950,10.36875651,1898.6,1898.3,0.15169296]
[1743204337286,9.02487424,1898.6,1898.3,0.15169296]
[1743204337484,10.52996966,1898.6,1898.3,0.15169296]
[1743204338485,5.26733,1898.5,1898.3,0.15169296]
[1743204339553,10.53486,1898.5,1898.3,0.15169296]
[1743204339780,5.26733,1898.5,1898.3,0.15169296]
[1743204341676,10.53486,1898.5,1898.3,0.15169296]
[1743204342157,5.26759,1898.4,1898.3,0.15169296]
[1743204342676,5.26733,1898.5,1898.3,0.15169296]
[1743204342877,5.26759,1898.4,1898.3,0.15169296]
[1743204343599,5.26759,1898.4,1898.1,0.8152]
[1743204343784,5.26759,1898.4,1898.3,0.15169296]
[1743204343984,5.26759,1898.4,1898.2,0.15171229]
[1743204344186,5.26759,1898.4,1898.3,0.15169296]